fUST/lending_fUST_20250514
["ID","MTS","AMOUNT","RATE_DAILY","PERIOD"]
[361062815,1747227043517,-160.0,0.00015405,2]
[361062817,1747227043526,-160.0,0.00015405,2]
[361062819,1747227043535,-160.0,0.00015405,2]
[361062821,1747227043544,-160.0,0.00015405,2]
[361062823,1747227043554,-422.27619506,0.00015405,2]
[361062825,1747227043563,-160.0,0.00015405,2]
[361062827,1747227043572,-997.9747837,0.00015405,2]
[361062829,1747227043582,-160.0,0.00015405,2]
[361062831,1747227043591,-160.0,0.00015405,2]
[361062833,1747227043601,-212.21045333,0.00015405,2]
[361062835,1747227043610,-1500.0,0.00015721,2]
[361062837,1747227043620,-440.33593596,0.00015797,2]
[361062839,1747227043629,-300.0,0.000158,2]
[361062841,1747227043640,-231.60517385,0.00016015,2]
[361062843,1747227043649,-537.46928203,0.000162,2]
[361062845,1747227043658,-153.0,0.00016209,7]
[361062847,1747227043670,-440.33593596,0.00016245,2]
[361062849,1747227043679,-1567.82453191,0.00016269,2]
[361062852,1747227043691,-432.17546809,0.00016269,2]
[361062854,1747227043701,-151.0,0.00016438,3]
[361062856,1747227043711,-440.33593596,0.00016693,2]
[361062858,1747227043720,-2500.0,0.00016817,2]
[361062860,1747227043729,-225.301,0.00017,2]
[361062862,1747227043739,-155.0,0.00017,2]
[361062864,1747227043749,-304.5077035,0.0001705,2]
[361062866,1747227043758,-440.33593596,0.00017141,2]
[361062868,1747227043767,-3144.34395649,0.00017224,2]
[361062870,1747227043783,-2082.2,0.00017224,2]
[361063079,1747227046274,-993.48876483,0.00017224,2]
[361063094,1747227046409,-2100.4303059,0.00017224,2]
[361064779,1747227156331,-796.11539912,0.00015058,2]
[361064780,1747227156353,-1303.88460088,0.00015158,2]
[361064857,1747228238245,-390.356045,0.00013699,2]
[361064859,1747228238256,-524.91067324,0.00015,2]
[361064861,1747228238265,-46.03409994,0.00015058,2]
[361065352,1747228243566,-410.37841282,0.00015058,2]
[361065354,1747228243576,-570.94477318,0.00015376,2]
[361065620,1747228246536,-427.03001052,0.00015376,2]
[361065623,1747228246559,-160.0,0.00015376,2]
[361065626,1747228246583,-160.0,0.00015376,2]
[361065629,1747228246605,-160.0,0.00015376,2]
[361065632,1747228246627,-212.21045333,0.00015376,2]
[361065636,1747228246648,-160.0,0.00015376,2]
[361065639,1747228246671,-269.8451427,0.00015376,2]
[361065642,1747228246688,-152.43105236,0.00015376,2]
[361065644,1747228246697,-160.0,0.00015376,2]
[361065646,1747228246709,-1489.3602175,0.00015734,2]
[361065647,1747228246718,-173.0,0.00016438,3]
[361065649,1747228246728,-500.0,0.0001675,2]
[361065652,1747228246738,-405.4735725,0.000169,2]
[361065654,1747228246748,-500.0,0.00016999,2]
[361065656,1747228246758,-500.0,0.00016999,2]
[361065657,1747228246767,-500.0,0.00016999,2]
[361065659,1747228246777,-615.98838046,0.00016999,2]
[361065661,1747228246787,-500.0,0.00016999,2]
[361065663,1747228246797,-211.0,0.00017,7]
[361065665,1747228246807,-322.0,0.00017,7]
[361065667,1747228246816,-243.0,0.00017,7]
[361065669,1747228246826,-398.0,0.00017,7]
[361065671,1747228246835,-385.0,0.00017,7]
[361065673,1747228246844,-425.0,0.00017,7]
[361065675,1747228246854,-372.0,0.00017,7]
[361065677,1747228246863,-345.0,0.00017,7]
[361065679,1747228246873,-195.0,0.00017,7]
[361065682,1747228246885,-250.0,0.00017083,2]
[361065684,1747228246894,-5950.96499984,0.00017138,2]
[361065743,1747228247483,-269.8451427,0.00017138,2]
[361066319,1747229301016,-32494.0,0.000136,2]
[361066344,1747229432562,-300.0,0.00013597,2]
[361066345,1747229432572,-300.0,0.00013598,2]
[361066346,1747229432581,-300.0,0.00013598,2]
[361066347,1747229432590,-300.0,0.00013598,2]
[361066348,1747229432599,-300.0,0.00013598,2]
[361066349,1747229432609,-1200.0,0.00013598,2]
[361066350,1747229432618,-162.34528584,0.00013599,2]
[361066351,1747229432627,-500.0,0.00013599,2]
[361066352,1747229432636,-500.0,0.00013599,2]
[361066353,1747229432645,-500.0,0.00013599,2]
[361066354,1747229432655,-500.0,0.00013599,2]
[361066355,1747229432664,-500.0,0.00013599,2]
[361066356,1747229432674,-500.0,0.00013599,2]
[361066357,1747229432683,-976.0,0.00013698,2]
[361066358,1747229432693,-389.569782,0.00013699,2]
[361066359,1747229432705,-34294.89767975,0.000138,2]
[361066360,1747229432714,-500.0,0.000161,2]
[361066361,1747229432723,-500.0,0.000161,2]
[361066362,1747229432733,-500.0,0.000161,2]
[361066363,1747229432742,-623.34630218,0.000161,2]
[361066364,1747229432751,-500.0,0.000161,2]
[361066365,1747229432761,-357.83964976,0.000161,2]
[361066366,1747229432769,-3168.30053031,0.00016101,2]
[361066367,1747229432782,-5096.59627196,0.00016101,2]
[361066368,1747229432791,-151.0,0.00016104,2]
[361066369,1747229432801,-151.0,0.00016104,2]
[361066370,1747229432810,-151.0,0.00016104,2]
[361066371,1747229432820,-151.0,0.00016104,2]
[361066372,1747229432830,-24900.0,0.00016104,2]
[361066373,1747229432839,-201.0149287,0.0001615,2]
[361066374,1747229432848,-391.95778675,0.000169,2]
[361066375,1747229432857,-1000.0,0.00017,2]
[361066376,1747229432867,-12627.42419379,0.00017053,2]
[361066377,1747229432877,-151.0,0.00017062,2]
[361066378,1747229432886,-151.0,0.00017062,2]
[361066379,1747229432896,-151.0,0.00017062,2]
[361066380,1747229432907,-151.0,0.00017062,2]
[361066381,1747229432916,-455.025104,0.00017071,2]
[361066382,1747229432925,-455.025104,0.00017071,2]
[361066383,1747229432934,-160.0,0.0001708,2]
[361066384,1747229432943,-160.0,0.00017082,2]
[361066385,1747229432954,-160.0,0.00017082,2]
[361066386,1747229432964,-212.21045333,0.00017082,2]
[361066387,1747229432973,-422.27619506,0.00017082,2]
[361066388,1747229432982,-997.9747837,0.00017082,2]
[361066389,1747229432992,-160.0,0.00017082,2]
[361066390,1747229433002,-160.0,0.00017082,2]
[361066391,1747229433012,-500.0,0.00017111,10]
[361066392,1747229433021,-200.0,0.00017111,10]
[361066393,1747229433030,-200.0,0.00017111,10]
[361066394,1747229433039,-200.0,0.00017111,10]
[361066395,1747229433049,-200.0,0.00017111,10]
[361066396,1747229433059,-200.0,0.00017111,10]
[361066397,1747229433069,-200.0,0.00017111,10]
[361066398,1747229433079,-200.0,0.00017111,10]
[361066399,1747229433089,-200.0,0.00017111,10]
[361066400,1747229433099,-200.0,0.00017111,10]
[361066401,1747229433109,-200.0,0.00017111,10]
[361066402,1747229433118,-200.0,0.00017111,10]
[361066403,1747229433127,-200.0,0.00017111,10]
[361066404,1747229433136,-200.0,0.00017111,10]
[361066405,1747229433146,-200.0,0.00017111,10]
[361066406,1747229433156,-200.0,0.00017111,10]
[361066407,1747229433166,-200.0,0.00017111,10]
[361066408,1747229433175,-200.0,0.00017111,10]
[361066409,1747229433185,-200.0,0.00017111,10]
[361066410,1747229433195,-200.0,0.00017111,10]
[361066411,1747229433205,-200.0,0.00017111,10]
[361066412,1747229433215,-200.0,0.00017111,10]
[361066413,1747229433224,-200.0,0.00017111,10]
[361066414,1747229433234,-200.0,0.00017111,10]
[361066415,1747229433244,-200.0,0.00017111,10]
[361066416,1747229433253,-200.0,0.00017111,10]
[361066417,1747229433263,-200.0,0.00017111,10]
[361066418,1747229433273,-200.0,0.00017111,10]
[361066419,1747229433283,-200.0,0.00017111,10]
[361066420,1747229433294,-200.0,0.00017111,10]
[361066421,1747229433304,-200.0,0.00017111,10]
[361066422,1747229433313,-200.0,0.00017111,10]
[361066423,1747229433322,-200.0,0.00017111,10]
[361066424,1747229433332,-200.0,0.00017111,10]
[361066425,1747229433342,-200.0,0.00017111,10]
[361066426,1747229433352,-200.0,0.00017111,10]
[361066427,1747229433363,-200.0,0.00017111,10]
[361066428,1747229433372,-200.0,0.00017111,10]
[361066429,1747229433383,-200.0,0.00017111,10]
[361066430,1747229433393,-200.0,0.00017111,10]
[361066431,1747229433403,-200.0,0.00017111,10]
[361066432,1747229433414,-200.0,0.00017111,10]
[361066433,1747229433424,-200.0,0.00017111,10]
[361066434,1747229433434,-200.0,0.00017111,10]
[361066435,1747229433444,-200.0,0.00017111,10]
[361066436,1747229433460,-200.0,0.00017111,10]
[361066437,1747229433471,-200.0,0.00017111,10]
[361066438,1747229433481,-200.0,0.00017111,10]
[361066439,1747229433491,-200.0,0.00017111,10]
[361066440,1747229433502,-200.0,0.00017111,10]
[361066441,1747229433512,-200.0,0.00017111,10]
[361066442,1747229433523,-200.0,0.00017111,10]
[361066443,1747229433533,-200.0,0.00017111,10]
[361066444,1747229433543,-200.0,0.00017111,10]
[361066445,1747229433553,-200.0,0.00017111,10]
[361066446,1747229433564,-200.0,0.00017111,10]
[361066447,1747229433575,-200.0,0.00017111,10]
[361066448,1747229433585,-200.0,0.00017111,10]
[361066449,1747229433595,-200.0,0.00017111,10]
[361066450,1747229433605,-200.0,0.00017111,10]
[361066451,1747229433616,-200.0,0.00017111,10]
[361066452,1747229433626,-200.0,0.00017111,10]
[361066453,1747229433636,-200.0,0.00017111,10]
[361066454,1747229433646,-200.0,0.00017111,10]
[361066455,1747229433655,-200.0,0.00017111,10]
[361066456,1747229433665,-200.0,0.00017111,10]
[361066457,1747229433676,-200.0,0.00017111,10]
[361066458,1747229433686,-200.0,0.00017111,10]
[361066459,1747229433696,-200.0,0.00017111,10]
[361066460,1747229433710,-200.0,0.00017111,10]
[361066461,1747229433720,-200.0,0.00017111,10]
[361066462,1747229433730,-200.0,0.00017111,10]
[361066463,1747229433740,-200.0,0.00017111,10]
[361066464,1747229433751,-200.0,0.00017111,10]
[361066465,1747229433760,-200.0,0.00017111,10]
[361066466,1747229433770,-200.0,0.00017111,10]
[361066467,1747229433781,-200.0,0.00017111,10]
[361066468,1747229433791,-200.0,0.00017111,10]
[361066469,1747229433802,-200.0,0.00017111,10]
[361066470,1747229433812,-200.0,0.00017111,10]
[361066471,1747229433825,-200.0,0.00017111,10]
[361066472,1747229433836,-200.0,0.00017111,10]
[361066473,1747229433847,-200.0,0.00017111,10]
[361066474,1747229433857,-200.0,0.00017111,10]
[361066475,1747229433867,-200.0,0.00017111,10]
[361066476,1747229433877,-200.0,0.00017111,10]
[361066477,1747229433888,-200.0,0.00017111,10]
[361066478,1747229433899,-200.0,0.00017111,10]
[361066479,1747229433910,-200.0,0.00017111,10]
[361066480,1747229433920,-200.0,0.00017111,10]
[361066481,1747229433929,-200.0,0.00017111,10]
[361066482,1747229433939,-200.0,0.00017111,10]
[361066483,1747229433951,-200.0,0.00017111,10]
[361066484,1747229433960,-200.0,0.00017111,10]
[361066485,1747229433970,-200.0,0.00017111,10]
[361066486,1747229433980,-200.0,0.00017111,10]
[361066487,1747229433989,-200.0,0.00017111,10]
[361066488,1747229433999,-200.0,0.00017111,10]
[361066489,1747229434009,-200.0,0.00017111,10]
[361066490,1747229434166,-267.391405,0.00017111,10]
[361066491,1747229434178,-212.21045333,0.00017111,10]
[361066492,1747229434188,-151.0,0.00017111,2]
[361066493,1747229434200,-151.0,0.00017111,2]
[361066494,1747229434210,-151.0,0.00017111,2]
[361066495,1747229434219,-151.0,0.00017111,2]
[361066496,1747229434229,-151.0,0.00017111,2]
[361066497,1747229434239,-151.0,0.00017118,2]
[361066498,1747229434249,-157.645568,0.00017118,2]
[361066499,1747229434259,-157.645568,0.00017118,2]
[361066500,1747229434269,-151.0,0.00017118,2]
[361066501,1747229434279,-151.0,0.00017118,2]
[361066502,1747229434288,-151.0,0.00017118,2]
[361066503,1747229434298,-223.44805,0.00017118,2]
[361066504,1747229434308,-200.6429404,0.00017166,2]
[361066505,1747229434317,-151.0,0.00017279,2]
[361066506,1747229434327,-151.0,0.00017279,2]
[361066507,1747229434337,-151.0,0.00017279,2]
[361066508,1747229434346,-151.0,0.00017279,2]
[361066509,1747229434355,-391.95778669,0.00017279,2]
[361066510,1747229434365,-151.0,0.00017284,2]
[361066511,1747229434375,-441.09074,0.00017284,2]
[361066512,1747229434385,-441.09074,0.00017284,2]
[361066513,1747229434395,-151.0,0.00017284,2]
[361066514,1747229434405,-152.676153,0.00017284,2]
[361066515,1747229434415,-516.989565,0.00017284,2]
[361066516,1747229434424,-516.989565,0.00017284,2]
[361066517,1747229434434,-1826.878827,0.00017284,2]
[361066518,1747229434444,-1826.878827,0.00017284,2]
[361066519,1747229434454,-151.0,0.00017284,2]
[361066520,1747229434463,-151.0,0.00017284,2]
[361066521,1747229434472,-174.896221,0.00017284,2]
[361066522,1747229434482,-162.338077,0.00017284,2]
[361066523,1747229434491,-174.896221,0.00017284,2]
[361066524,1747229434501,-162.338077,0.00017284,2]
[361066525,1747229434511,-3295.582486,0.00017284,2]
[361066526,1747229434520,-223.55276,0.00017284,2]
[361066527,1747229434530,-3295.582486,0.00017284,2]
[361066528,1747229434539,-223.55276,0.00017284,2]
[361066529,1747229434548,-151.0,0.00017284,2]
[361066530,1747229434558,-151.0,0.00017284,2]
[361066531,1747229434567,-151.0,0.00017284,2]
[361066532,1747229434576,-444.895134,0.00017284,2]
[361066533,1747229434586,-444.895134,0.00017284,2]
[361066534,1747229434595,-151.0,0.00017284,2]
[361066535,1747229434605,-151.0,0.00017284,2]
[361066536,1747229434615,-151.0,0.00017284,2]
[361066537,1747229434624,-455.025104,0.00017284,2]
[361066538,1747229434634,-455.025104,0.00017284,2]
[361066539,1747229434644,-151.0,0.00017284,2]
[361066540,1747229434653,-151.0,0.00017284,2]
[361066541,1747229434663,-151.0,0.00017284,2]
[361066542,1747229434673,-151.0,0.00017284,2]
[361066543,1747229434682,-183.128104,0.00017284,2]
[361066544,1747229434691,-280.869062,0.00017284,2]
[361066545,1747229434702,-327.12378332,0.00017385,10]
[361066546,1747229434711,-391.95778669,0.00017659,2]
[361066547,1747229434721,-997.9747837,0.00018,10]
[361066548,1747229434731,-314.30604044,0.00018,10]
[361066549,1747229434741,-9294.5968318,0.00018,10]
[361066550,1747229434754,-809.77192445,0.00018,10]
[361066602,1747229438649,-173.70388044,0.00016,2]
[361066604,1747229438660,-173.70388038,0.0001757,2]
[361066606,1747229438670,-524.44337668,0.00018,10]
[361066611,1747229438710,-1998.61206086,0.00018,10]
[361066613,1747229438720,-391.95778669,0.00018038,2]
[361066615,1747229438731,-500.0,0.00018271,2]
[361066618,1747229438741,-500.0,0.00018271,2]
[361066620,1747229438751,-500.0,0.00018271,2]
[361066622,1747229438761,-162.338077,0.00018272,2]
[361066624,1747229438770,-162.338077,0.00018272,2]
[361066626,1747229438780,-151.0,0.00018272,2]
[361066628,1747229438789,-2881.85399845,0.00018272,2]
[361067343,1747229446622,-0.03320682,0.00013799,2]
[361067345,1747229446634,-422.748628,0.00013799,2]
[361067348,1747229446658,-77.21816518,0.00013799,2]
[361067350,1747229446667,-471.22377651,0.00013799,2]
[361067356,1747229446719,-28.77622349,0.00013799,2]
[361067359,1747229446728,-500.0,0.00013799,2]
[361067361,1747229446737,-88.82857908,0.00018272,2]
[361067525,1747230431186,163.8,0.0002,120]
[361067600,1747230631891,-391.371406,0.00013699,2]
[361067601,1747230631901,-173.70388038,0.0001395,2]
[361067604,1747230631911,-300.0,0.00014049,2]
[361067606,1747230631922,-300.0,0.0001405,2]
[361067607,1747230631931,-300.0,0.0001405,2]
[361067610,1747230631941,-1200.0,0.0001405,2]
[361067611,1747230631951,-300.0,0.0001405,2]
[361067615,1747230631961,-19319.82083776,0.0001405,2]
[361067635,1747230632145,-30680.17916224,0.0001405,2]
[361067637,1747230632155,-386.33237369,0.00014051,2]
[361067639,1747230632165,-500.0,0.00014051,2]
[361067641,1747230632174,-270.12347496,0.00014051,2]
[361067643,1747230632184,-500.0,0.00014051,2]
[361067645,1747230632193,-500.0,0.00014051,2]
[361067647,1747230632202,-500.0,0.00014051,2]
[361067649,1747230632211,-501.76060013,0.00014051,2]
[361067651,1747230632221,-500.0,0.00014051,2]
[361067653,1747230632231,-500.0,0.00014051,2]
[361067655,1747230632241,-500.0,0.00014051,2]
[361067656,1747230632250,-500.0,0.00014051,2]
[361067658,1747230632260,-500.0,0.00014051,2]
[361067661,1747230632269,-500.0,0.00014051,2]
[361067662,1747230632280,-491.93942595,0.00014051,2]
[361067665,1747230632289,-500.0,0.00014051,2]
[361067667,1747230632299,-500.0,0.00014051,2]
[361067668,1747230632308,-422.76732887,0.00014051,2]
[361067669,1747230632318,-388.54527426,0.00014051,2]
[361067670,1747230632327,-500.0,0.00014051,2]
[361067671,1747230632337,-500.0,0.00014051,2]
[361067672,1747230632350,-500.0,0.00014051,2]
[361067673,1747230632359,-500.0,0.00014051,2]
[361067674,1747230632368,-500.0,0.00014051,2]
[361067675,1747230632381,-500.0,0.00014051,2]
[361067676,1747230632391,-500.0,0.00014051,2]
[361067677,1747230632400,-500.0,0.00014051,2]
[361067678,1747230632410,-341.64200437,0.00014051,2]
[361067679,1747230632419,-500.0,0.00014051,2]
[361067680,1747230632428,-500.0,0.00014051,2]
[361067681,1747230632437,-500.0,0.00014051,2]
[361067682,1747230632446,-500.0,0.00014051,2]
[361067683,1747230632455,-500.0,0.00014051,2]
[361067684,1747230632465,-500.0,0.00014051,2]
[361067685,1747230632474,-500.0,0.00014051,2]
[361067686,1747230632483,-500.0,0.00014051,2]
[361067687,1747230632492,-500.0,0.00014051,2]
[361067688,1747230632501,-500.0,0.00014051,2]
[361067689,1747230632510,-500.0,0.00014051,2]
[361067690,1747230632520,-500.0,0.00014051,2]
[361067691,1747230632529,-500.0,0.00014051,2]
[361067692,1747230632539,-500.0,0.00014051,2]
[361067694,1747230632548,-500.0,0.00014051,2]
[361067695,1747230632557,-500.0,0.00014051,2]
[361067696,1747230632567,-500.0,0.00014051,2]
[361067698,1747230632575,-400.0,0.00014051,2]
[361067700,1747230632586,-478.81,0.00014051,2]
[361067702,1747230632596,-400.0,0.00014051,2]
[361067704,1747230632607,-400.0,0.00014051,2]
[361067706,1747230632616,-400.0,0.00014051,2]
[361067708,1747230632627,-400.0,0.00014051,2]
[361067710,1747230632637,-500.0,0.00014053,2]
[361067713,1747230632646,-400.0,0.00014053,2]
[361067714,1747230632655,-24900.0,0.00014054,2]
[361067716,1747230632665,-17587.2112357,0.00014146,2]
[361067718,1747230632674,-344.01,0.00014325,2]
[361067720,1747230632684,-400.0,0.00014325,2]
[361067722,1747230632694,-400.0,0.00014325,2]
[361067724,1747230632703,-438.65486431,0.00014325,2]
[361067726,1747230632712,-400.0,0.00014325,2]
[361067728,1747230632720,-151.0,0.00014327,2]
[361067730,1747230632730,-151.0,0.00014327,2]
[361067732,1747230632739,-300.139096,0.00014366,2]
[361067734,1747230632748,-300.139096,0.00014366,2]
[361067736,1747230632757,-151.0,0.00014366,2]
[361067738,1747230632767,-151.0,0.00014366,2]
[361067740,1747230632775,-7544.7213601,0.00014367,2]
[361067742,1747230632786,-4020.65405468,0.00014382,2]
[361067744,1747230632795,-1659.117843,0.00014482,2]
[361067746,1747230632805,-400.0,0.00014599,2]
[361067748,1747230632814,-400.0,0.00014599,2]
[361067750,1747230632823,-400.0,0.00014599,2]
[361067752,1747230632833,-400.0,0.00014873,2]
[361067754,1747230632843,-400.0,0.00014873,2]
[361067756,1747230632853,-400.0,0.00014873,2]
[361067758,1747230632862,-400.0,0.00015147,2]
[361067760,1747230632874,-400.0,0.00015147,2]
[361067762,1747230632885,-400.0,0.00015147,2]
[361067764,1747230632895,-500.0,0.00015256,2]
[361067766,1747230632905,-500.0,0.00015256,2]
[361067768,1747230632915,-151.0,0.00015256,2]
[361067770,1747230632925,-160.0,0.00015301,2]
[361067772,1747230632935,-212.21045333,0.00015301,2]
[361067774,1747230632945,-160.0,0.00015301,2]
[361067776,1747230632955,-422.27619506,0.00015301,2]
[361067778,1747230632965,-160.0,0.00015301,2]
[361067780,1747230632976,-997.9747837,0.00015301,2]
[361067782,1747230632986,-12627.42419379,0.00015301,2]
[361067784,1747230632997,-160.0,0.00015301,2]
[361067786,1747230633007,-300.139096,0.00015368,2]
[361067788,1747230633017,-300.139096,0.00015368,2]
[361067790,1747230633027,-151.0,0.00015368,2]
[361067792,1747230633037,-151.0,0.00015368,2]
[361067794,1747230633047,-155.129166,0.00015372,2]
[361067796,1747230633057,-151.0,0.00015372,2]
[361067798,1747230633067,-465.290608,0.00015372,2]
[361067800,1747230633077,-465.290608,0.00015372,2]
[361067802,1747230633087,-151.378151,0.00015372,2]
[361067804,1747230633097,-420.0,0.00015391,2]
[361067806,1747230633107,-420.0,0.00015391,2]
[361067808,1747230633117,-420.0,0.00015391,2]
[361067810,1747230633131,-290.11,0.00015421,2]
[361067812,1747230633141,-400.0,0.00015421,2]
[361067814,1747230633151,-442.01,0.00015421,2]
[361067816,1747230633162,-1680.0,0.00015454,2]
[361067818,1747230633172,-151.0,0.00015457,2]
[361067820,1747230633183,-151.0,0.00015639,2]
[361067822,1747230633193,-400.0,0.00015695,2]
[361067824,1747230633203,-4020.65405464,0.00015719,2]
[361067826,1747230633212,-500.0,0.00015804,2]
[361067828,1747230633222,-503.64763726,0.00015804,2]
[361067830,1747230633231,-339.6967486,0.000159,2]
[361067832,1747230633241,-300.139096,0.00015916,2]
[361067834,1747230633251,-300.139096,0.00015916,2]
[361067837,1747230633261,-151.0,0.00015916,2]
[361067839,1747230633272,-240.935954,0.00015916,2]
[361067841,1747230633282,-4132.44840114,0.00015969,2]
[361067842,1747230633292,-400.0,0.00015969,2]
[361067844,1747230633302,-400.0,0.00016101,2]
[361067847,1747230633312,-270.65,0.00016243,2]
[361067848,1747230633321,-1000.19003611,0.00016277,2]
[361067851,1747230633331,-339.69674846,0.00016314,2]
[361067852,1747230633343,-400.0,0.00016375,2]
[361067854,1747230633352,-339.69674846,0.00016728,2]
[361067856,1747230633362,-6278.874953,0.00016777,2]
[361067859,1747230633379,-587.0,0.00016861,2]
[361067860,1747230633388,-318.0,0.00016861,2]
[361067862,1747230633399,-587.0,0.00016861,2]
[361067864,1747230633409,-2351.0,0.00017,2]
[361067867,1747230633420,-151.0,0.00017002,2]
[361067869,1747230633430,-465.290608,0.00017012,2]
[361067871,1747230633439,-465.290608,0.00017012,2]
[361067873,1747230633449,-151.0,0.00017013,2]
[361067875,1747230633459,-151.0,0.00017013,2]
[361067877,1747230633469,-423.055621,0.00017013,2]
[361067879,1747230633479,-161.082413,0.00017013,2]
[361067881,1747230633489,-423.055621,0.00017013,2]
[361067883,1747230633499,-161.082413,0.00017013,2]
[361067884,1747230633509,-216.67221,0.00017013,2]
[361067886,1747230633519,-455.025104,0.00017013,2]
[361067888,1747230633529,-455.025104,0.00017013,2]
[361067890,1747230633539,-151.0,0.00017013,2]
[361067892,1747230633549,-151.0,0.00017013,2]
[361067895,1747230633559,-4020.65405464,0.00017056,2]
[361067896,1747230633568,-212.961233,0.00017057,2]
[361067899,1747230633578,-212.961233,0.00017057,2]
[361067900,1747230633588,-151.0,0.00017057,2]
[361067902,1747230633598,-151.0,0.00017057,2]
[361067904,1747230633608,-300.139096,0.00017057,2]
[361067906,1747230633618,-300.139096,0.00017057,2]
[361067909,1747230633630,-151.0,0.00017057,2]
[361067910,1747230633639,-154.579307,0.00017071,2]
[361067912,1747230633649,-160.0,0.0001711,2]
[361067914,1747230633660,-212.961233,0.00017111,2]
[361067916,1747230633670,-212.961233,0.00017111,2]
[361067918,1747230633680,-212.961233,0.00017118,2]
[361067920,1747230633690,-212.961233,0.00017118,2]
[361067922,1747230633699,-339.69674846,0.00017141,2]
[361067924,1747230633710,-477.07372435,0.00017274,2]
[361067927,1747230633720,-212.961233,0.00017284,2]
[361067929,1747230633730,-212.961233,0.00017284,2]
[361067930,1747230633741,-339.69674846,0.00017555,2]
[361067933,1747230633752,-339.69674846,0.00017969,2]
[361067934,1747230633763,-212.961233,0.00018,2]
[361067936,1747230633774,-212.961233,0.00018,2]
[361067939,1747230633784,-427.16,0.00018,2]
[361067940,1747230633794,-500.0,0.00018108,2]
[361067943,1747230633804,-501.53825745,0.00018108,2]
[361067945,1747230633815,-500.0,0.00018108,2]
[361067947,1747230633825,-500.0,0.00018108,2]
[361067949,1747230633835,-500.0,0.00018108,2]
[361067951,1747230633845,-500.0,0.00018108,2]
[361067953,1747230633856,-400.0,0.00018271,2]
[361067955,1747230633866,-151.0,0.00018272,2]
[361067957,1747230633880,-151.0,0.00018272,2]
[361067959,1747230633891,-151.0,0.00018272,2]
[361067961,1747230633901,-151.0,0.00018272,2]
[361067963,1747230633915,-212.961233,0.00018272,2]
[361067965,1747230633926,-212.961233,0.00018272,2]
[361067967,1747230633935,-151.0,0.00018272,2]
[361067969,1747230633945,-529.308889,0.00018272,2]
[361067971,1747230633956,-529.308889,0.00018272,2]
[361067973,1747230633966,-151.0,0.00018272,2]
[361067975,1747230633976,-230.948874,0.00018272,2]
[361067977,1747230633987,-151.0,0.00018272,2]
[361067979,1747230633996,-423.055621,0.00018272,2]
[361067981,1747230634007,-161.082413,0.00018272,2]
[361067983,1747230634016,-423.055621,0.00018272,2]
[361067985,1747230634026,-151.0,0.00018272,2]
[361067987,1747230634038,-161.082413,0.00018272,2]
[361067989,1747230634047,-151.0,0.00018272,2]
[361067991,1747230634057,-151.0,0.00018272,2]
[361067993,1747230634067,-455.025104,0.00018272,2]
[361067995,1747230634076,-455.025104,0.00018272,2]
[361067997,1747230634086,-263.571239,0.00018272,2]
[361067999,1747230634096,-263.571239,0.00018272,2]
[361068001,1747230634106,-167.751858,0.00018272,2]